fUST/lending_fUST_20240914
["ID","MTS","AMOUNT","RATE_DAILY","PERIOD"]
[338030334,1726243854120,-500.0,0.00011232,2]
[338030335,1726243854130,-500.0,0.00011232,2]
[338030336,1726243854139,-500.0,0.00011232,2]
[338030337,1726243854149,-500.0,0.00011232,2]
[338030338,1726243854159,-500.0,0.00011232,2]
[338030339,1726243854169,-500.0,0.00011232,2]
[338030340,1726243854179,-500.0,0.00011232,2]
[338030341,1726243854188,-500.0,0.00011232,2]
[338030342,1726243854198,-500.0,0.00011232,2]
[338030343,1726243854207,-500.0,0.00011232,2]
[338030344,1726243854216,-500.0,0.00011232,2]
[338030345,1726243854226,-502.25341862,0.00011232,2]
[338030346,1726243854235,-571.13798767,0.00011232,2]
[338030347,1726243854245,-500.0,0.00011232,2]
[338030348,1726243854254,-234.1007469,0.00011232,2]
[338030349,1726243854267,-265.8992531,0.00011232,2]
[338030350,1726243854277,-500.0,0.00011232,2]
[338030351,1726243854287,-500.0,0.00011232,2]
[338030352,1726243854297,-500.0,0.00011232,2]
[338030353,1726243854307,-500.0,0.00011232,2]
[338030354,1726243854317,-500.0,0.00011232,2]
[338030355,1726243854327,-500.0,0.00011232,2]
[338030356,1726243854336,-500.0,0.00011232,2]
[338030357,1726243854346,-500.0,0.00011232,2]
[338030358,1726243854355,-500.0,0.00011232,2]
[338030359,1726243854365,-500.0,0.00011232,2]
[338030360,1726243854374,-500.0,0.00011232,2]
[338030361,1726243854384,-256.71562706,0.00011232,2]
[338030362,1726243854400,-243.28437294,0.00011232,2]
[338030363,1726243854408,-500.0,0.00011232,2]
[338030364,1726243854417,-500.0,0.00011232,2]
[338030365,1726243854427,-500.0,0.00011232,2]
[338030366,1726243854436,-500.0,0.00011232,2]
[338030367,1726243854445,-500.0,0.00011232,2]
[338030368,1726243854456,-500.0,0.00011232,2]
[338030369,1726243854465,-500.0,0.00011232,2]
[338030370,1726243854475,-500.0,0.00011232,2]
[338030371,1726243854484,-500.0,0.00011232,2]
[338030372,1726243854494,-500.0,0.00011232,2]
[338030373,1726243854503,-500.0,0.00011232,2]
[338030374,1726243854513,-500.0,0.00011232,2]
[338030375,1726243854524,-500.0,0.00011232,2]
[338030376,1726243854533,-500.0,0.00011232,2]
[338030377,1726243854542,-500.0,0.00011232,2]
[338030378,1726243854552,-500.0,0.00011232,2]
[338030379,1726243854561,-500.0,0.00011232,2]
[338030380,1726243854570,-500.0,0.00011232,2]
[338030381,1726243854579,-500.0,0.00011232,2]
[338030382,1726243854589,-500.0,0.00011232,2]
[338030383,1726243854598,-649.61,0.00011232,2]
[338030384,1726243854607,-500.0,0.00011232,2]
[338030385,1726243854617,-500.0,0.00011232,2]
[338030386,1726243854626,-500.0,0.00011232,2]
[338030387,1726243854636,-711.91,0.00011232,2]
[338030388,1726243854646,-500.0,0.00011232,2]
[338030389,1726243854656,-500.0,0.00011232,2]
[338030390,1726243854665,-1302.5,0.00011232,2]
[338030391,1726243854675,-500.0,0.00011232,2]
[338030392,1726243854685,-500.0,0.00011232,2]
[338030393,1726243854694,-500.0,0.00011232,2]
[338030394,1726243854704,-500.0,0.00011232,2]
[338030395,1726243854713,-211.46,0.00011232,2]
[338030396,1726243854722,-500.0,0.00011273,2]
[338030397,1726243854732,-500.0,0.00011273,2]
[338030398,1726243854742,-500.0,0.00011273,2]
[338030399,1726243854752,-248.93296508,0.00011324,2]
[338030400,1726243854761,-500.0,0.00011505,2]
[338030401,1726243854770,-500.0,0.00011505,2]
[338030402,1726243854778,-500.0,0.00011505,2]
[338030403,1726243854788,-500.0,0.00011505,2]
[338030404,1726243854797,-500.0,0.00011505,2]
[338030405,1726243854807,-500.0,0.00011505,2]
[338030406,1726243854817,-2489.45,0.00011505,2]
[338030407,1726243854826,-2489.45,0.00011505,2]
[338030408,1726243854836,-2489.45,0.00011505,2]
[338030409,1726243854846,-2489.45,0.00011505,2]
[338030410,1726243854856,-2489.67995598,0.00011505,2]
[338030411,1726243854865,-161.41,0.00011506,2]
[338030412,1726243854875,-570.49933936,0.00011506,2]
[338030413,1726243854886,-500.0,0.00011506,2]
[338030414,1726243854895,-500.0,0.00011506,2]
[338030415,1726243854905,-500.0,0.00011506,2]
[338030416,1726243854914,-500.0,0.00011506,2]
[338030417,1726243854924,-500.0,0.00011506,2]
[338030418,1726243854933,-500.0,0.00011506,2]
[338030419,1726243854942,-500.0,0.00011506,2]
[338030420,1726243854952,-500.0,0.00011506,2]
[338030421,1726243854964,-500.0,0.00011506,2]
[338030422,1726243854973,-500.0,0.00011506,2]
[338030423,1726243854982,-500.0,0.00011506,2]
[338030424,1726243854991,-500.0,0.00011506,2]
[338030425,1726243855002,-500.0,0.00011506,2]
[338030426,1726243855011,-500.0,0.00011506,2]
[338030427,1726243855020,-500.0,0.00011506,2]
[338030428,1726243855030,-464.70840787,0.00011506,2]
[338030429,1726243855042,-500.0,0.00011506,2]
[338030430,1726243855051,-500.0,0.00011506,2]
[338030431,1726243855061,-500.0,0.00011506,2]
[338030432,1726243855070,-1537.67,0.00011506,2]
[338030433,1726243855079,-500.0,0.00011506,2]
[338030434,1726243855088,-500.0,0.00011506,2]
[338030435,1726243855098,-500.0,0.00011506,2]
[338030436,1726243855108,-500.0,0.00011506,2]
[338030437,1726243855120,-500.0,0.00011506,2]
[338030438,1726243855130,-500.0,0.00011506,2]
[338030439,1726243855140,-500.0,0.00011506,2]
[338030440,1726243855150,-622.86338888,0.00011506,2]
[338030441,1726243855160,-500.0,0.00011506,2]
[338030442,1726243855170,-500.0,0.00011506,2]
[338030443,1726243855181,-500.0,0.00011506,2]
[338030444,1726243855192,-500.0,0.00011506,2]
[338030445,1726243855203,-500.0,0.00011506,2]
[338030446,1726243855213,-500.0,0.00011506,2]
[338030447,1726243855224,-500.0,0.00011506,2]
[338030448,1726243855233,-500.0,0.00011506,2]
[338030449,1726243855243,-500.0,0.00011506,2]
[338030450,1726243855253,-500.0,0.00011506,2]
[338030451,1726243855264,-1513.27,0.00011506,2]
[338030452,1726243855276,-500.0,0.00011506,2]
[338030453,1726243855285,-505.57627024,0.00011506,2]
[338030454,1726243855296,-500.0,0.00011506,2]
[338030455,1726243855307,-500.0,0.00011506,2]
[338030456,1726243855318,-500.0,0.00011506,2]
[338030457,1726243855327,-500.0,0.00011506,2]
[338030458,1726243855337,-500.0,0.00011506,2]
[338030459,1726243855346,-500.0,0.00011506,2]
[338030460,1726243855357,-500.0,0.00011506,2]
[338030461,1726243855367,-500.0,0.00011506,2]
[338030462,1726243855379,-500.0,0.00011506,2]
[338030463,1726243855389,-500.0,0.00011506,2]
[338030464,1726243855399,-500.0,0.00011506,2]
[338030465,1726243855410,-500.0,0.00011506,2]
[338030466,1726243855420,-500.0,0.00011506,2]
[338030467,1726243855430,-507.88047047,0.00011506,2]
[338030468,1726243855439,-500.0,0.00011506,2]
[338030469,1726243855450,-539.70705304,0.00011506,2]
[338030470,1726243855460,-500.0,0.00011506,2]
[338030471,1726243855470,-500.0,0.00011506,2]
[338030472,1726243855481,-500.0,0.00011506,2]
[338030473,1726243855492,-500.0,0.00011506,2]
[338030474,1726243855502,-503.7,0.00011506,2]
[338030475,1726243855514,-500.0,0.00011506,2]
[338030476,1726243855524,-500.0,0.00011506,2]
[338030477,1726243855535,-571.52,0.00011506,2]
[338030478,1726243855546,-500.0,0.00011506,2]
[338030479,1726243855557,-500.0,0.00011506,2]
[338030480,1726243855567,-500.0,0.00011506,2]
[338030481,1726243855578,-500.0,0.00011506,2]
[338030482,1726243855588,-500.0,0.00011506,2]
[338030483,1726243855599,-500.0,0.00011506,2]
[338030484,1726243855610,-500.0,0.00011506,2]
[338030485,1726243855621,-500.0,0.00011506,2]
[338030486,1726243855633,-500.0,0.00011506,2]
[338030487,1726243855643,-500.0,0.00011506,2]
[338030488,1726243855654,-500.0,0.00011506,2]
[338030489,1726243855665,-500.0,0.00011506,2]
[338030490,1726243855800,-500.0,0.00011506,2]
[338030491,1726243855810,-540.9241102,0.00011506,2]
[338030492,1726243855819,-539.9,0.00011506,2]
[338030493,1726243855830,-500.0,0.00011506,2]
[338030494,1726243855840,-500.0,0.00011506,2]
[338030495,1726243855850,-500.0,0.00011506,2]
[338030496,1726243855860,-500.0,0.00011506,2]
[338030497,1726243855869,-500.0,0.00011506,2]
[338030498,1726243855879,-500.0,0.00011506,2]
[338030499,1726243855888,-500.0,0.00011506,2]
[338030500,1726243855898,-458.22028376,0.00011506,2]
[338030501,1726243855908,-500.0,0.00011506,2]
[338030502,1726243855918,-515.81,0.00011506,2]
[338030503,1726243855927,-500.0,0.00011506,2]
[338030504,1726243855937,-500.0,0.00011506,2]
[338030505,1726243855947,-500.0,0.00011506,2]
[338030506,1726243855958,-500.0,0.00011506,2]
[338030507,1726243855969,-545.94502684,0.00011506,2]
[338030508,1726243855979,-500.0,0.00011506,2]
[338030509,1726243855989,-500.0,0.00011506,2]
[338030510,1726243855999,-500.0,0.00011506,2]
[338030511,1726243856008,-500.0,0.00011506,2]
[338030512,1726243856018,-282.3,0.00011506,2]
[338030513,1726243856031,-309.36481577,0.00011506,2]
[338030514,1726243856043,-500.0,0.00011506,2]
[338030515,1726243856053,-627.6,0.00011506,2]
[338030516,1726243856066,-168.97548964,0.00011506,2]
[338030517,1726243856324,-530.39408352,0.00010958,2]
[338030518,1726243856336,-306.0,0.000114,2]
[338030519,1726243856345,-153.0,0.000114,2]
[338030520,1726243856356,-410.847389,0.000114,2]
[338030521,1726243856368,-331.02451036,0.00011506,2]
[338030522,1726243856379,-500.0,0.00011506,2]
[338030523,1726243856389,-422.37026171,0.00011506,2]
[338030524,1726243856399,-213.17497069,0.00011506,2]
[338030525,1726243856409,-500.0,0.00011506,2]
[338030526,1726243856418,-500.0,0.00011506,2]
[338030527,1726243856427,-500.0,0.00011506,2]
[338030528,1726243856437,-500.0,0.00011506,2]
[338030529,1726243856446,-500.0,0.00011506,2]
[338030530,1726243856455,-500.0,0.00011506,2]
[338030531,1726243856464,-500.0,0.00011506,2]
[338030532,1726243856473,-546.21,0.00011506,2]
[338030533,1726243856482,-504.86676638,0.00011506,2]
[338030534,1726243856492,-500.0,0.00011506,2]
[338030535,1726243856501,-568.43,0.00011506,2]
[338030536,1726243856510,-528.34,0.00011506,2]
[338030537,1726243856519,-500.0,0.00011506,2]
[338030538,1726243856530,-500.0,0.00011506,2]
[338030539,1726243856539,-500.0,0.00011506,2]
[338030540,1726243856548,-500.0,0.00011506,2]
[338030541,1726243856557,-500.0,0.00011506,2]
[338030542,1726243856567,-500.0,0.00011506,2]
[338030543,1726243856576,-500.0,0.00011506,2]
[338030544,1726243856585,-500.0,0.00011506,2]
[338030545,1726243856595,-500.0,0.00011506,2]
[338030546,1726243856603,-500.0,0.00011506,2]
[338030547,1726243856613,-615.42,0.00011506,2]
[338030548,1726243856622,-514.88248097,0.00011506,2]
[338030549,1726243856631,-500.0,0.00011506,2]
[338030550,1726243856639,-500.0,0.00011506,2]
[338030551,1726243856649,-662.87,0.00011506,2]
[338030552,1726243856658,-5552.01,0.00011506,2]
[338030553,1726243856667,-308.88793009,0.00011506,2]
[338030554,1726243856676,-502.80280618,0.00011506,2]
[338030555,1726243856685,-500.0,0.00011506,2]
[338030556,1726243856694,-500.0,0.00011506,2]
[338030557,1726243856703,-500.0,0.00011506,2]
[338030558,1726243856712,-547.36,0.00011506,2]
[338030559,1726243856722,-500.0,0.00011506,2]
[338030560,1726243856731,-500.0,0.00011506,2]
[338030561,1726243856740,-536.88,0.00011506,2]
[338030562,1726243856749,-500.0,0.00011506,2]
[338030563,1726243856759,-544.95,0.00011506,2]
[338030564,1726243856768,-500.0,0.00011506,2]
[338030565,1726243856779,-500.0,0.00011506,2]
[338030566,1726243856788,-500.0,0.00011506,2]
[338030567,1726243856797,-500.0,0.00011506,2]
[338030568,1726243856807,-11672.15,0.00011506,2]
[338030569,1726243856816,-500.0,0.00011506,2]
[338030570,1726243856826,-500.0,0.00011506,2]
[338030571,1726243856836,-500.0,0.00011506,2]
[338030572,1726243856847,-500.0,0.00011506,2]
[338030573,1726243856858,-298.64280272,0.00011506,2]
[338030574,1726243856868,-500.0,0.00011506,2]
[338030575,1726243856877,-541.89683376,0.00011506,2]
[338030576,1726243856887,-1507.42,0.00011506,2]
[338030577,1726243856897,-500.0,0.00011506,2]
[338030578,1726243856907,-500.0,0.00011506,2]
[338030579,1726243856917,-500.0,0.00011506,2]
[338030580,1726243856928,-500.0,0.00011506,2]
[338030581,1726243856937,-500.0,0.00011506,2]
[338030582,1726243856948,-500.0,0.00011506,2]
[338030583,1726243856962,-500.0,0.00011506,2]
[338030584,1726243856972,-500.0,0.00011506,2]
[338030585,1726243856982,-2746.57,0.00011506,2]
[338030586,1726243856991,-506.46017736,0.00011506,2]
[338030587,1726243857002,-500.0,0.00011506,2]
[338030588,1726243857011,-640.7,0.00011506,2]
[338030589,1726243857020,-500.0,0.00011506,2]
[338030590,1726243857030,-451.53982654,0.00011506,2]
[338030591,1726243857040,-500.0,0.00011506,2]
[338030592,1726243857051,-500.0,0.00011506,2]
[338030593,1726243857060,-529.3,0.00011506,2]
[338030594,1726243857069,-500.0,0.00011506,2]
[338030595,1726243857080,-500.0,0.00011506,2]
[338030596,1726243857090,-500.0,0.00011506,2]
[338030597,1726243857101,-521.92,0.00011506,2]
[338030598,1726243857113,-500.0,0.00011506,2]
[338030599,1726243857123,-500.0,0.00011506,2]
[338030600,1726243857133,-500.0,0.00011506,2]
[338030601,1726243857142,-276.73,0.00011506,2]
[338030602,1726243857153,-500.0,0.00011506,2]
[338030603,1726243857164,-500.0,0.00011506,2]
[338030604,1726243857175,-500.0,0.00011506,2]
[338030605,1726243857184,-500.0,0.00011506,2]
[338030606,1726243857194,-500.0,0.00011506,2]
[338030607,1726243857206,-3094.14,0.00011506,2]
[338030608,1726243857214,-500.0,0.00011506,2]
[338030609,1726243857225,-4359.55,0.00011506,2]
[338030610,1726243857234,-504.75707035,0.00011506,2]
[338030611,1726243857243,-500.0,0.00011506,2]
[338030612,1726243857252,-604.42,0.00011506,2]
[338030613,1726243857261,-503.15321427,0.00011506,2]
[338030614,1726243857270,-500.0,0.00011506,2]
[338030615,1726243857287,-586.57867501,0.00011506,2]
[338030616,1726243857297,-500.0,0.00011506,2]
[338030617,1726243857305,-500.0,0.00011506,2]
[338030618,1726243857314,-500.0,0.00011506,2]
[338030619,1726243857323,-500.0,0.00011506,2]
[338030620,1726243857332,-500.0,0.00011506,2]
[338030621,1726243857341,-438.25,0.00011506,2]
[338030622,1726243857351,-500.0,0.00011506,2]
[338030623,1726243857361,-500.0,0.00011506,2]
[338030624,1726243857370,-500.0,0.00011506,2]
[338030625,1726243857379,-500.0,0.00011506,2]
[338030626,1726243857388,-500.0,0.00011506,2]
[338030627,1726243857399,-500.0,0.00011506,2]
[338030628,1726243857409,-500.0,0.00011506,2]
[338030629,1726243857419,-500.0,0.00011506,2]
[338030630,1726243857429,-500.0,0.00011506,2]
[338030631,1726243857438,-500.0,0.00011506,2]
[338030632,1726243857448,-500.0,0.00011506,2]
[338030633,1726243857459,-500.0,0.00011506,2]
[338030634,1726243857469,-500.0,0.00011506,2]
[338030635,1726243857479,-500.0,0.00011506,2]
[338030636,1726243857490,-500.0,0.00011506,2]
[338030637,1726243857502,-553.88,0.00011506,2]
[338030638,1726243857512,-500.0,0.00011506,2]
[338030639,1726243857523,-500.0,0.00011506,2]
[338030640,1726243857532,-500.0,0.00011506,2]
[338030641,1726243857541,-235.15,0.00011506,2]
[338030642,1726243857550,-314.63246122,0.00011506,2]
[338030643,1726243857559,-500.0,0.00011506,2]
[338030644,1726243857568,-500.0,0.00011506,2]
[338030645,1726243857578,-424.72861805,0.00011506,2]
[338030646,1726243857587,-649.61,0.00011506,2]
[338030647,1726243857596,-500.0,0.00011506,2]
[338030648,1726243857605,-500.0,0.00011506,2]
[338030649,1726243857614,-711.91,0.00011506,2]
[338030650,1726243857623,-500.0,0.00011506,2]
[338030651,1726243857633,-1302.5,0.00011506,2]
[338030652,1726243857643,-500.0,0.00011506,2]
[338030653,1726243857652,-500.0,0.00011506,2]
[338030654,1726243857661,-500.0,0.00011506,2]
[338030655,1726243857671,-500.0,0.00011506,2]
[338030656,1726243857680,-286.48,0.00011515,2]
[338030657,1726243857689,-7129.84878974,0.00011521,2]
[338030658,1726243857698,-248.93296508,0.00011556,2]
[338030659,1726243857707,-150.0,0.00011703,2]
[338030660,1726243857717,-500.0,0.00011779,2]
[338030661,1726243857727,-500.0,0.00011779,2]
[338030662,1726243857737,-253.8,0.0001178,2]
[338030663,1726243857747,-166.22,0.0001178,2]
[338030664,1726243857757,-500.0,0.0001178,2]
[338030665,1726243857767,-389.98,0.0001178,2]
[338030666,1726243857776,-1537.67,0.0001178,2]
[338030667,1726243857784,-500.0,0.0001178,2]
[338030668,1726243857792,-318.86,0.0001178,2]
[338030669,1726243857801,-599.14,0.0001178,2]
[338030670,1726243857810,-248.47,0.0001178,2]
[338030671,1726243857820,-500.0,0.0001178,2]
[338030672,1726243857829,-500.0,0.0001178,2]
[338030673,1726243857839,-500.0,0.0001178,2]
[338030674,1726243857850,-500.0,0.0001178,2]
[338030675,1726243857859,-500.0,0.0001178,2]
[338030676,1726243857869,-1513.27,0.0001178,2]
[338030677,1726243857878,-563.89,0.0001178,2]
[338030678,1726243857888,-648.82,0.0001178,2]
[338030679,1726243857897,-500.0,0.0001178,2]
[338030680,1726243857907,-443.68,0.0001178,2]
[338030681,1726243857916,-500.0,0.0001178,2]
[338030682,1726243857925,-571.52,0.0001178,2]
[338030683,1726243857935,-500.0,0.0001178,2]
[338030684,1726243857945,-171.13,0.0001178,2]
[338030685,1726243857955,-310.81,0.0001178,2]
[338030686,1726243857967,-500.0,0.0001178,2]
[338030687,1726243857976,-484.05,0.0001178,2]
[338030688,1726243857986,-500.0,0.0001178,2]
[338030689,1726243857995,-500.0,0.0001178,2]
[338030690,1726243858004,-500.0,0.0001178,2]
[338030691,1726243858013,-500.0,0.0001178,2]
[338030692,1726243858022,-500.0,0.0001178,2]
[338030693,1726243858033,-500.0,0.0001178,2]
[338030694,1726243858043,-212.28,0.0001178,2]
[338030695,1726243858054,-555.11,0.0001178,2]
[338030696,1726243858063,-500.0,0.0001178,2]
[338030697,1726243858073,-500.0,0.0001178,2]
[338030698,1726243858082,-500.0,0.0001178,2]
[338030699,1726243858092,-546.21,0.0001178,2]
[338030700,1726243858102,-160.85,0.0001178,2]
[338030701,1726243858111,-500.0,0.0001178,2]
[338030702,1726243858120,-500.0,0.0001178,2]
[338030703,1726243858130,-500.0,0.0001178,2]
[338030704,1726243858139,-369.32,0.0001178,2]
[338030705,1726243858149,-500.0,0.0001178,2]
[338030706,1726243858158,-500.0,0.0001178,2]
[338030707,1726243858167,-397.55,0.0001178,2]
[338030708,1726243858177,-500.0,0.0001178,2]
[338030709,1726243858187,-662.87,0.0001178,2]
[338030710,1726243858196,-5552.01,0.0001178,2]
[338030711,1726243858205,-500.0,0.0001178,2]
[338030712,1726243858214,-500.0,0.0001178,2]
[338030713,1726243858223,-500.0,0.0001178,2]
[338030714,1726243858233,-547.36,0.0001178,2]
[338030715,1726243858242,-267.53,0.0001178,2]
[338030716,1726243858251,-500.0,0.0001178,2]
[338030717,1726243858261,-500.0,0.0001178,2]
[338030718,1726243858270,-500.0,0.0001178,2]
[338030719,1726243858281,-500.0,0.0001178,2]
[338030720,1726243858291,-11672.15,0.0001178,2]
[338030721,1726243858300,-500.0,0.0001178,2]
[338030722,1726243858309,-500.0,0.0001178,2]
[338030723,1726243858318,-500.0,0.0001178,2]
[338030724,1726243858327,-1507.42,0.0001178,2]
[338030725,1726243858336,-500.0,0.0001178,2]
[338030726,1726243858346,-500.0,0.0001178,2]
[338030727,1726243858356,-500.0,0.0001178,2]
[338030728,1726243858365,-500.0,0.0001178,2]
[338030729,1726243858374,-327.01882377,0.0001178,2]
[338030730,1726243858383,-2746.57,0.0001178,2]
[338030731,1726243858393,-274.18,0.0001178,2]
[338030732,1726243858402,-500.0,0.0001178,2]
[338030733,1726243858411,-239.71,0.0001178,2]
[338030734,1726243858419,-529.3,0.0001178,2]
[338030735,1726243858429,-468.71896733,0.0001178,2]
[338030736,1726243858439,-500.0,0.0001178,2]
[338030737,1726243858449,-500.0,0.0001178,2]
[338030738,1726243858458,-500.0,0.0001178,2]
[338030739,1726243858468,-559.76,0.0001178,2]
[338030740,1726243858478,-500.0,0.0001178,2]
[338030741,1726243858488,-3094.14,0.0001178,2]
[338030742,1726243858497,-4359.55,0.0001178,2]
[338030743,1726243858507,-500.0,0.0001178,2]
[338030744,1726243858517,-604.42,0.0001178,2]
[338030745,1726243858527,-500.0,0.0001178,2]
[338030746,1726243858536,-500.0,0.0001178,2]
[338030747,1726243858546,-208.8,0.0001178,2]
[338030748,1726243858556,-500.0,0.0001178,2]
[338030749,1726243858565,-500.0,0.0001178,2]
[338030750,1726243858575,-500.0,0.0001178,2]
[338030751,1726243858584,-500.0,0.0001178,2]
[338030752,1726243858595,-500.0,0.0001178,2]
[338030753,1726243858604,-500.0,0.0001178,2]
[338030754,1726243858614,-500.0,0.0001178,2]
[338030755,1726243858624,-500.0,0.0001178,2]
[338030756,1726243858633,-500.0,0.0001178,2]
[338030757,1726243858645,-500.0,0.0001178,2]
[338030758,1726243858656,-500.0,0.0001178,2]
[338030759,1726243858665,-500.0,0.0001178,2]
[338030760,1726243858677,-500.0,0.0001178,2]
[338030761,1726243858687,-500.0,0.0001178,2]
[338030762,1726243858699,-500.0,0.0001178,2]
[338030763,1726243858708,-500.0,0.0001178,2]
[338030764,1726243858718,-649.61,0.0001178,2]
[338030765,1726243858729,-500.0,0.0001178,2]
[338030766,1726243858739,-500.0,0.0001178,2]
[338030767,1726243858749,-711.91,0.0001178,2]
[338030768,1726243858758,-1302.5,0.0001178,2]
[338030769,1726243858768,-500.0,0.0001178,2]
[338030770,1726243858778,-373.42,0.0001178,2]
[338030771,1726243858789,-277.83310412,0.0001178,2]
[338030772,1726243858799,-248.93296508,0.00011789,2]
[338030773,1726243858809,-500.0,0.00011799,2]
[338030774,1726243858819,-500.0,0.00011799,2]
[338030775,1726243858829,-249.13867547,0.000118,2]
[338030776,1726243858839,-27723.44766577,0.000118,2]
[338030824,1726244411515,-250.0,9.397e-05,2]
[338030825,1726244411537,-300.0,9.417e-05,2]
[338030826,1726244411560,-300.0,9.417e-05,2]
[338030827,1726244411586,-24900.0,9.418e-05,2]
[338030828,1726244411609,-3000.0,9.472e-05,2]
[338030829,1726244411633,-10973.4539388,9.546e-05,2]
[338030832,1726244484159,-511.661131,9.461e-05,2]
[338030833,1726244484183,-511.661131,9.464e-05,2]
[338030834,1726244484205,-511.661131,9.466e-05,2]
[338030835,1726244484233,-511.661131,9.469e-05,2]
[338030836,1726244484256,-511.661131,9.471e-05,2]
[338030837,1726244484279,-511.661131,9.474e-05,2]
[338030838,1726244484305,-511.661131,9.476e-05,2]
[338030839,1726244484328,-511.661131,9.479e-05,2]
[338030840,1726244484351,-511.661131,9.481e-05,2]
[338030841,1726244484375,-511.661131,9.484e-05,2]
[338030842,1726244484397,-511.661131,9.486e-05,2]
[338030843,1726244484421,-511.661131,9.488e-05,2]
[338030844,1726244484444,-511.661131,9.491e-05,2]
[338030845,1726244484468,-511.661131,9.493e-05,2]
[338030846,1726244484495,-511.661131,9.496e-05,2]
[338030847,1726244484517,-511.661131,9.498e-05,2]
[338030848,1726244484540,-511.661131,9.501e-05,2]
[338030849,1726244484563,-511.661131,9.503e-05,2]
[338030850,1726244484585,-511.661131,9.506e-05,2]
[338030851,1726244484608,-278.438511,9.507e-05,2]
[338030989,1726245032050,-250.0,8.97e-05,2]
[338030990,1726245032060,-283.87068736,8.988e-05,2]
[338031011,1726245037947,-2716.12931264,8.988e-05,2]
[338031013,1726245037956,-3786.97014338,9.005e-05,2]
[338031019,1726245038008,-21113.02985662,9.005e-05,2]
[338031021,1726245038017,-378.1131676,9.451e-05,2]
[338031023,1726245038026,-511.661131,9.508e-05,2]
[338031025,1726245038036,-1204.3352002,9.551e-05,2]
[338031027,1726245038046,-250.0,9.585e-05,2]
[338031029,1726245038056,-250.0,9.611e-05,2]
[338031030,1726245038066,-250.0,9.638e-05,2]
[338031032,1726245038076,-250.0,9.664e-05,2]
[338031033,1726245038086,-250.0,9.69e-05,2]
[338031034,1726245038095,-250.0,9.717e-05,2]
[338031035,1726245038104,-250.0,9.743e-05,2]
[338031036,1726245038114,-250.0,9.769e-05,2]
[338031037,1726245038123,-250.0,9.796e-05,2]
[338031038,1726245038132,-250.0,9.822e-05,2]
[338031039,1726245038141,-250.0,9.848e-05,2]
[338031040,1726245038150,-250.0,9.874e-05,2]
[338031041,1726245038160,-250.0,9.901e-05,2]
[338031042,1726245038171,-250.0,9.927e-05,2]
[338031044,1726245038181,-250.0,9.953e-05,2]
[338031046,1726245038190,-250.0,9.98e-05,2]
[338031048,1726245038200,-333.04240939,0.0001,2]
[338031050,1726245038210,-250.0,0.00010006,2]
[338031052,1726245038220,-250.0,0.00010032,2]
[338031053,1726245038229,-250.0,0.00010059,2]
[338031054,1726245038238,-250.0,0.00010085,2]
[338031055,1726245038247,-192.70172254,0.00010758,2]
[338031056,1726245038257,-937.42911065,0.00010758,2]